bitfinex-derivatives/quotes_ETHF0:USTF0_20250817
["timestamp","ask_amount","ask_price","bid_price","bid_amount"]
[1755421331998,1.0743,4550.2,4549.1,1.8291]
[1755421332204,3.2078,4549.9,4549.1,1.8291]
[1755421332393,3.2078,4550.0,4549.2,0.6637]
[1755421332698,0.8432,4549.9,4549.2,0.6637]
[1755421333405,0.51529991,4549.8,4549.2,0.6637]
[1755421333598,0.8432,4549.9,4549.2,0.6637]
[1755421333803,2.5657,4549.4,4548.6,0.6637]
[1755421334002,3.2078,4549.3,4548.6,0.6637]
[1755421334196,3.2078,4549.3,4548.4,0.8246]
[1755421334401,0.51579414,4549.2,4549.0,0.6637]
[1755421334608,1.9175,4550.4,4549.4,0.6637]
[1755421334901,0.51567658,4550.3,4549.4,3.8715]
[1755421335101,3.2078,4550.6,4549.4,3.2078]
[1755421335405,0.51570385,4550.5,4550.4,1.9275]
[1755421335600,0.1,4551.2,4550.4,2.932]
[1755421335795,0.51605389,4551.1,4551.0,0.43915]
[1755421336109,0.51605389,4551.1,4550.4,3.2078]
[1755421336110,0.1,4551.2,4551.1,2.4928]
[1755421336301,0.61597244,4551.2,4551.1,2.4928]
[1755421336799,0.1,4551.2,4551.1,2.4928]
[1755421337404,0.1,4551.2,4551.1,2.93194]
[1755421337607,0.1,4551.2,4551.1,2.4928]
[1755421337908,0.1,4551.2,4550.9,3.2078]
[1755421338209,0.1,4551.2,4551.1,2.5073]
[1755421338507,0.61693369,4551.2,4551.1,2.5073]
[1755421338702,0.61693789,4551.2,4551.1,2.5073]
[1755421339103,0.1,4551.2,4551.1,2.5073]
[1755421339406,0.1,4551.2,4551.1,2.94644]
[1755421339603,0.61690064,4551.2,4551.1,2.94644]
[1755421340308,0.1,4551.2,4551.1,2.94644]
[1755421341104,0.1,4551.2,4550.9,3.2078]
[1755421341105,4.0497,4552.5,4551.5,0.43909]
[1755421341305,0.5178309,4552.4,4551.5,0.43909]
[1755421341502,0.5178309,4552.3,4551.5,0.43909]
[1755421341702,0.5178309,4552.2,4551.5,0.43909]
[1755421341902,0.5178309,4552.1,4551.5,0.43909]
[1755421342102,2.4529309,4552.0,4551.4,3.6469]
[1755421342299,0.5178309,4551.9,4551.8,2.5073]
[1755421342605,1.9351,4551.8,4551.5,0.628]
[1755421342806,0.0219,4552.9,4551.4,3.2078]
[1755421342807,1.56847998,4552.7,4551.9,1.87116]
[1755421343004,1.56847998,4552.9,4552.2,0.8041]
[1755421343205,1.56847998,4553.0,4552.3,1.0752]
[1755421343600,3.2078,4553.1,4552.3,1.0752]
[1755421343601,1.56847998,4552.9,4552.3,1.0752]
[1755421343806,0.6297,4552.8,4552.2,0.63938367]
[1755421344013,2.19817998,4552.8,4552.2,0.63938367]
[1755421344203,0.6297,4552.8,4552.3,1.0752]
[1755421344408,1.56847998,4552.9,4552.0,1.7032]
[1755421344804,1.56847998,4553.0,4552.3,1.0752]
[1755421345103,1.9351,4552.8,4551.9,3.2078]
[1755421345298,1.9351,4552.8,4551.8,0.8041]
[1755421345498,1.7229,4552.3,4551.7,1.7032]
[1755421345702,1.7229,4552.3,4551.4,3.2078]
[1755421345703,0.8419,4552.2,4551.4,3.64691]
[1755421345901,0.8419,4552.2,4551.6,0.43909]
[1755421346206,1.56847998,4552.9,4551.9,0.43906]
[1755421346409,1.56847998,4553.1,4552.9,0.43896]
[1755421346608,3.2078,4553.7,4553.1,0.43894]
[1755421346802,3.2078,4553.7,4553.3,1.4321]
[1755421347003,3.2078,4553.7,4552.7,3.2078]
[1755421347004,3.2078,4553.7,4552.8,1.4321]
[1755421347211,0.8419,4553.0,4552.0,5.7151]
[1755421347406,0.8419,4552.8,4552.0,3.2078]
[1755421347611,1.0932,4552.4,4551.5,3.2078]
[1755421347806,3.2078,4552.5,4551.5,3.2078]
[1755421347807,1.0932,4552.2,4551.5,3.2078]
[1755421348013,1.9351,4551.8,4550.8,2.5073]
[1755421348711,1.9351,4552.3,4551.1,0.628]
[1755421348911,1.9351,4552.3,4551.0,2.5073]
[1755421349111,0.8419,4552.3,4551.2,0.43913]
[1755421349314,3.2078,4552.6,4551.4,3.2078]
[1755421349510,3.2078,4552.6,4552.5,0.439]
[1755421349711,3.2078,4552.6,4551.9,0.628]
[1755421349712,4.301,4554.3,4552.4,3.2078]
[1755421349909,4.301,4554.3,4551.9,1.09765]
[1755421349910,1.0932,4554.3,4553.6,2.5073]
[1755421350315,3.2078,4555.7,4554.9,0.8041]
[1755421350511,1.96049,4556.0,4555.7,2.94599]
[1755421350813,1.96049,4556.0,4554.3,1.09706]
[1755421350814,4.6794,4556.9,4555.9,0.43867]
[1755421351011,4.6794,4556.9,4556.0,0.3156656]
[1755421351319,3.2078,4557.4,4556.3,3.2078]
[1755421351521,3.2078,4557.9,4557.0,1.4321]
[1755421351716,0.1,4558.2,4557.9,0.43848]
[1755421352017,3.2078,4559.5,4558.2,1.4321]
[1755421352219,4.3048121,4559.0,4558.3,0.3156656]
[1755421352519,3.2078,4558.4,4557.6,0.628]
[1755421352719,0.0038121,4559.0,4558.2,0.43845]
[1755421352919,0.0038121,4559.0,4558.5,0.43842]
[1755421353121,0.0038121,4559.0,4557.7,3.6463]
[1755421353319,0.0038121,4559.0,4557.8,0.8041]
[1755421353522,3.2078,4558.0,4557.2,3.2078]
[1755421353819,0.0038121,4559.0,4558.1,1.4321]
[1755421354021,1.9351,4558.9,4558.5,3.2078]
[1755421354324,5.7726,4558.7,4557.3,3.2078]
[1755421354523,2.5648,4558.7,4557.4,2.5073]
[1755421354724,2.5867,4558.5,4557.3,3.2078]
[1755421354914,1.7229,4557.8,4557.1,0.09874593]
[1755421355118,3.2078,4558.0,4557.1,0.09874593]
[1755421355320,1.0932,4558.4,4557.3,0.628]
[1755421355517,1.4716,4558.2,4557.1,3.30654593]
[1755421355819,0.0038121,4559.0,4557.6,1.4321]
[1755421355820,0.8419,4558.8,4557.6,1.4321]
[1755421356020,1.4716,4558.4,4557.3,1.0752]
[1755421356322,2.5648,4557.9,4557.1,0.09874593]
[1755421356532,1.0932,4558.8,4557.8,0.43849]
[1755421356727,3.2078,4558.7,4557.8,0.43849]
[1755421357030,3.2078,4558.7,4557.7,1.4321]
[1755421357228,0.0219,4558.6,4557.6,3.2078]
[1755421357420,1.4716,4557.7,4557.1,0.09874593]
[1755421357725,0.0219,4556.8,4555.4,3.2078]
[1755421357923,1.0932,4555.9,4555.4,3.2078]
[1755421358117,1.7448,4555.7,4555.4,3.2078]
[1755421358429,0.0219,4556.0,4555.4,3.2078]
[1755421358624,3.2297,4555.6,4554.3,3.2078]
[1755421358830,0.6297,4554.3,4553.7,3.2078]
[1755421359027,0.6297,4554.3,4553.2,4.283]
[1755421359028,2.5648,4554.3,4553.2,4.283]
[1755421359229,0.0219,4553.7,4553.2,3.2078]
[1755421359430,2.5648,4553.7,4552.9,3.2078]
[1755421359728,2.5648,4553.7,4552.2,0.8041]
[1755421359729,3.2078,4553.2,4552.5,1.0752]
[1755421360023,2.5648,4553.1,4552.2,3.2078]
[1755421360420,3.2078,4553.9,4553.3,0.43892]
[1755421360624,1.9351,4554.5,4553.8,3.2078]
[1755421361021,0.6297,4554.6,4553.9,0.43887]
[1755421361218,0.6297,4556.0,4554.9,2.94607]
[1755421361417,3.2078,4556.5,4555.1,0.43875]
[1755421361418,3.2078,4555.9,4555.1,0.43875]
[1755421361627,3.2078,4555.4,4554.6,1.0752]
[1755421361825,3.2078,4555.4,4554.7,2.14199]
[1755421362130,0.8419,4555.8,4555.1,1.51395]
[1755421362332,0.8419,4555.8,4555.2,0.43874]
[1755421362628,3.2078,4557.0,4555.5,3.2078]
[1755421362818,3.2078,4556.2,4555.4,0.43871]
[1755421363023,3.2078,4555.6,4554.7,1.0752]
[1755421363422,3.2078,4555.7,4554.7,1.51399]
[1755421363626,3.2078,4555.7,4554.7,1.0752]
[1755421363826,4.0497,4555.2,4554.5,0.43881]
[1755421364031,4.0497,4555.2,4554.4,0.8041]
[1755421364326,4.0497,4555.2,4554.3,0.43882]
[1755421364529,0.8419,4555.2,4554.2,3.2078]
[1755421364728,1.7229,4555.3,4554.8,2.5073]
[1755421364931,2.5648,4555.6,4554.1,4.911]
[1755421365131,3.2078,4554.7,4553.5,3.2078]
[1755421365432,2.5648,4554.6,4553.5,3.2078]
[1755421365933,0.6297,4554.5,4553.5,3.2078]
[1755421366226,1.4716,4554.0,4553.0,3.2078]
[1755421366430,1.7229,4553.1,4552.3,0.43902]
[1755421366629,1.7229,4553.1,4552.1,3.2078]
[1755421366630,0.8419,4553.0,4552.1,3.2078]
[1755421366825,0.8419,4553.0,4551.6,3.2078]
[1755421366826,1.4716,4552.6,4551.6,3.2078]
[1755421367029,2.5648,4552.6,4551.7,0.43908]
[1755421367226,0.6297,4553.3,4551.7,1.0752]
[1755421367425,2.5648,4553.3,4552.0,0.43905]
[1755421367632,2.5648,4553.3,4552.3,0.8427]
[1755421367839,3.2078,4553.6,4552.3,0.8427]
[1755421368023,2.5117,4554.0,4553.0,1.28165]
[1755421368228,0.7903,4553.9,4552.8,3.2078]
[1755421368430,1.7433,4553.4,4552.3,3.2078]
[1755421368625,1.7433,4553.4,4551.7,1.6636]
[1755421368626,2.5117,4553.2,4551.7,4.8714]
[1755421368825,1.4426,4552.5,4551.7,3.2078]
[1755421369334,1.54747028,4555.0,4551.0,1.09787]
[1755421369335,1.7214,4554.2,4554.0,0.43886]
[1755421369537,2.5117,4554.8,4554.4,0.43882]
[1755421369738,2.5117,4554.8,4554.0,3.2078]
[1755421369739,1.0691,4554.8,4554.0,3.2078]
[1755421370039,0.7903,4554.9,4554.1,0.43885]
[1755421370537,1.8594,4555.0,4554.4,0.43881]
[1755421370726,1.8594,4555.0,4554.3,0.43883]
[1755421370928,3.2078,4555.6,4554.0,3.2078]
[1755421371128,3.2078,4555.6,4554.1,2.5063]
[1755421371334,2.5117,4555.5,4554.2,0.43883]
[1755421371533,3.2078,4554.8,4554.0,3.2078]
[1755421371736,2.5117,4554.7,4554.0,3.2078]
[1755421371935,2.5117,4554.7,4554.1,0.43885]
[1755421372132,2.5117,4554.7,4553.7,0.43889]
[1755421372329,3.2078,4554.3,4553.6,1.6636]
[1755421372529,3.2078,4554.6,4553.6,1.6636]
[1755421372734,3.2078,4555.1,4554.3,0.8427]
[1755421372933,0.7903,4555.2,4554.8,0.43878]
[1755421373138,5.7195,4555.0,4553.8,4.0505]
[1755421373534,2.5117,4554.4,4553.4,0.43891]
[1755421373738,2.5117,4554.4,4553.3,3.2078]
[1755421373938,31.613,4556.5,4549.3,23.47660225]
[1755421373939,1.0691,4553.9,4552.8,3.64677]
[1755421374134,3.2078,4553.5,4552.8,3.2078]
[1755421374339,31.613,4556.5,4551.9,1.09764]
[1755421374340,1.0691,4554.5,4553.7,0.43888]
[1755421374535,3.2078,4554.6,4554.0,0.43885]
[1755421374740,3.2078,4554.1,4553.3,3.64672]
[1755421374943,3.2078,4554.1,4553.3,3.2078]
[1755421375342,3.2078,4554.1,4552.8,1.02]
[1755421375343,2.5117,4553.5,4552.5,3.2078]
[1755421375536,1.0691,4552.7,4551.9,3.2078]
[1755421376141,0.0219,4553.6,4551.9,3.2078]
[1755421376142,3.2078,4553.5,4551.9,3.2078]
[1755421376340,2.5117,4553.4,4552.2,2.5063]
[1755421376540,2.5117,4553.4,4552.3,0.43902]
[1755421376735,2.5117,4553.4,4552.2,2.94533]
[1755421377039,2.5117,4553.4,4552.6,0.43899]
[1755421377242,2.5117,4553.4,4552.2,2.5063]
[1755421377835,3.2078,4553.5,4552.2,2.5063]
[1755421378646,2.5117,4553.4,4552.2,2.5063]
[1755421378849,1.8594,4553.3,4551.9,3.2078]
[1755421379038,5.0672,4552.9,4551.9,3.2078]
[1755421380148,5.0672,4552.4,4551.4,3.2078]
[1755421380348,0.7903,4552.2,4551.4,3.2078]
[1755421380547,1.7214,4552.3,4551.5,2.5063]
[1755421380737,0.7903,4553.5,4552.5,0.439]
[1755421380939,3.2078,4553.3,4552.6,2.5063]
[1755421381250,3.2078,4553.3,4551.5,6.10942239]
[1755421381251,1.0691,4553.1,4552.0,2.5063]
[1755421381437,3.2078,4552.8,4552.0,2.5063]
[1755421381638,3.2078,4552.8,4552.1,0.43904]
[1755421381842,3.2078,4552.8,4552.0,2.5063]
[1755421382041,3.2078,4552.2,4551.5,3.2078]
[1755421382240,1.4426,4552.1,4550.8,3.2078]
[1755421382445,1.4426,4552.0,4550.8,3.2078]
[1755421382645,1.0691,4551.9,4550.9,0.43916]
[1755421382849,3.2078,4552.2,4552.0,0.43905]
[1755421383044,3.2078,4552.2,4551.9,0.43906]
[1755421383248,3.2078,4552.2,4552.0,1.6636]
[1755421383448,3.2078,4552.2,4551.6,1.02]
[1755421383844,3.2078,4552.2,4551.4,1.4863]
[1755421384348,3.2078,4552.2,4551.5,0.4391]
[1755421384542,3.2078,4552.2,4551.5,1.4591]
[1755421384749,3.2078,4552.2,4552.1,2.5063]
[1755421384950,0.7903,4553.8,4553.2,0.43893]
[1755421385150,0.6523,4553.9,4553.0,0.43895]
[1755421385350,0.6523,4553.9,4553.1,0.43092776]
[1755421385748,0.6523,4553.9,4552.9,1.02]
[1755421386050,2.5117,4553.4,4552.1,1.45904]
[1755421386250,0.6523,4552.9,4552.1,1.02]
[1755421386453,0.7903,4552.7,4551.7,3.2078]
[1755421386746,0.6523,4552.3,4551.7,3.2078]
[1755421387154,0.6523,4552.3,4551.7,3.64688]
[1755421387554,0.6523,4552.3,4551.7,3.2078]
[1755421387945,3.2078,4552.4,4551.9,0.43905]
[1755421388150,0.6523,4552.9,4551.9,0.43905]
[1755421388151,0.6523,4552.9,4552.0,1.6129]
[1755421388453,3.2078,4552.7,4551.8,0.43907]
[1755421388651,1.7214,4552.6,4551.7,3.2078]
[1755421388956,0.6523,4551.9,4551.1,0.43913]
[1755421389959,3.2078,4552.0,4551.4,0.43911]
[1755421390153,0.6523,4552.5,4551.3,1.02]
[1755421390361,1.0691,4552.8,4551.8,1.02]
[1755421390556,0.6523,4552.7,4551.9,0.43906]
[1755421390859,3.8601,4552.4,4551.2,0.43912]
[1755421391058,0.7903,4552.3,4551.1,1.6129]
[1755421391258,0.7903,4552.3,4551.4,0.4391]
[1755421391654,0.7903,4552.3,4551.1,1.6129]
[1755421391655,0.6523,4552.2,4551.2,0.43912]
[1755421391862,1.7214,4552.2,4551.2,0.43912]
[1755421392060,1.7214,4552.2,4551.5,0.4391]
[1755421392257,1.7214,4552.2,4551.4,0.4391]
[1755421392558,1.7214,4552.2,4551.3,0.43911]
[1755421392748,1.7214,4552.2,4551.2,0.43913]
[1755421392953,0.6523,4552.2,4551.1,1.6129]
[1755421393753,1.7214,4552.2,4551.1,1.02]
[1755421393960,1.4426,4552.1,4551.1,1.45913]
[1755421394257,0.6523,4551.3,4550.1,0.09889784]
[1755421394848,1.8594,4551.2,4550.4,3.2078]
[1755421395161,1.8594,4551.0,4550.4,3.2078]
[1755421395456,1.8594,4550.8,4550.1,0.09889784]
[1755421395655,1.8594,4550.6,4550.1,0.09889784]
[1755421395865,2.5117,4550.8,4550.1,0.09889784]
[1755421396060,0.0219,4550.2,4548.9,3.2078]
[1755421396254,1.8594,4549.8,4548.9,3.2078]
[1755421396449,0.6523,4549.7,4548.9,3.2078]
[1755421396656,0.6523,4549.7,4549.0,0.43934]
[1755421397060,3.2078,4549.9,4549.1,3.0]
[1755421397259,3.2078,4551.8,4549.4,3.2078]
[1755421397557,3.2078,4551.8,4549.0,3.0]
[1755421397558,0.6523,4551.9,4550.9,3.64695]
[1755421397959,0.6325,4551.0,4550.9,3.64695]
[1755421398156,0.6325,4551.6,4550.9,3.64695]
[1755421398353,0.6325,4552.5,4551.0,3.0]
[1755421398561,3.2078,4553.0,4552.9,0.43896]
[1755421398562,1.0313,4553.0,4552.9,0.43896]
[1755421398759,1.6638,4553.0,4552.9,0.43896]
[1755421398953,0.6325,4553.0,4552.9,0.43896]
[1755421399357,0.6325,4553.8,4553.5,0.4389]
[1755421399561,0.6325,4553.8,4553.5,3.6467]
[1755421399962,1.0313,4554.5,4553.8,0.43887]
[1755421400161,0.8593,4554.4,4554.0,3.2078]
[1755421400463,0.6325,4554.1,4554.0,3.2078]
[1755421401367,31.632,4555.6,4554.0,3.2078]
[1755421401368,0.6325,4554.7,4554.0,3.2078]
[1755421401664,0.6325,4554.7,4554.5,3.2078]
[1755421401864,0.6325,4555.3,4554.6,0.4388]
[1755421403166,0.6325,4555.3,4554.5,3.2078]
[1755421403366,0.6325,4554.9,4554.5,3.2078]
[1755421403568,1.9125,4555.2,4554.0,3.2078]
[1755421403782,2.5231,4555.1,4554.0,3.2078]
[1755421403974,0.6325,4554.9,4554.0,3.2078]
[1755421404265,3.2297,4554.9,4554.0,3.2078]
[1755421404469,1.8906,4554.7,4553.5,3.2078]
[1755421404767,1.6638,4554.1,4553.5,3.2078]
[1755421404970,0.0219,4554.2,4552.9,3.2078]
[1755421405168,3.2078,4553.2,4551.9,3.2078]
[1755421405671,2.5231,4553.0,4551.9,3.2078]
[1755421405864,1.8906,4552.9,4551.9,3.2078]
[1755421406067,0.8593,4552.6,4551.9,3.2078]
[1755421406266,0.6325,4552.4,4551.9,3.2078]
[1755421406570,1.0313,4552.5,4551.9,3.2078]
[1755421406571,1.8906,4552.5,4551.9,3.2078]
[1755421406768,1.8906,4552.3,4550.8,3.2078]
[1755421407064,23.689,4553.4,4550.8,3.2078]
[1755421407065,4.0671,4552.2,4550.8,3.2078]
[1755421407369,1.4918,4552.0,4550.8,3.2078]
[1755421407565,0.8593,4551.8,4550.8,3.2078]
[1755421407868,1.4918,4551.6,4550.8,3.2078]
[1755421408172,0.6325,4551.4,4550.8,3.2078]
[1755421408570,2.5231,4551.4,4550.3,3.2078]
[1755421409069,3.2078,4551.1,4550.3,3.2078]
[1755421409266,3.2078,4551.1,4550.1,0.09889784]
[1755421409466,2.545,4550.9,4550.1,0.09889784]
[1755421409766,0.6325,4550.5,4550.1,0.09889784]
[1755421409966,2.5231,4550.2,4550.1,0.09889784]
[1755421411562,3.2078,4550.6,4549.8,1.6866]
[1755421411763,2.5231,4550.0,4549.3,3.2078]
[1755421411964,1.4918,4550.0,4549.3,3.2078]
[1755421412170,1.6638,4549.9,4548.8,3.2078]
[1755421412359,1.6638,4549.8,4548.8,3.2078]
[1755421412565,2.5231,4549.9,4548.8,3.2078]
[1755421412869,3.2078,4550.1,4548.8,3.2078]
[1755421412870,0.6325,4549.8,4548.8,3.2078]
[1755421413069,1.8906,4549.7,4548.8,3.2078]
[1755421413266,2.5231,4549.5,4548.8,3.2078]
[1755421413466,1.6638,4549.4,4548.8,3.2078]
[1755421413665,1.6638,4549.2,4548.2,3.2078]
[1755421413871,4.8716,4548.8,4547.7,3.2078]
[1755421414071,0.6325,4548.6,4547.7,3.2078]
[1755421414770,1.0313,4548.5,4547.7,3.2078]
[1755421415068,1.6638,4550.0,4548.5,1.422]
[1755421415265,3.2078,4549.0,4547.9,3.2078]
[1755421415465,2.5231,4548.9,4547.9,3.2078]
[1755421415766,1.6638,4548.1,4547.2,3.2078]
[1755421416164,4.0671,4548.2,4547.2,3.2078]
[1755421416165,1.6638,4548.0,4547.2,3.2078]
[1755421416671,0.8593,4547.9,4547.2,3.2078]
[1755421416871,0.6325,4548.7,4547.4,0.5931]
[1755421417076,0.6325,4548.7,4547.7,3.2078]
[1755421417671,0.6325,4549.4,4548.7,0.43937]
[1755421417971,33.5296,4549.6,4547.7,1.09866]
[1755421417972,1.0313,4549.6,4548.9,0.43935]
[1755421418471,1.0313,4549.6,4549.3,3.2078]
[1755421418775,0.6325,4550.0,4549.4,0.8289]
[1755421418971,1.8906,4549.9,4549.3,3.2078]
[1755421419162,0.6325,4549.6,4548.8,3.2078]
[1755421419369,0.6325,4549.6,4548.9,1.0652]
[1755421419674,0.6325,4549.6,4548.8,3.2078]
[1755421420170,1.6638,4549.2,4548.2,1.50461]
[1755421420372,3.8403,4549.2,4548.3,0.8289]
[1755421420872,23.686,4550.4,4545.7,23.684]
[1755421420873,3.2078,4550.0,4548.6,3.2078]
[1755421421075,3.2078,4550.0,4549.3,0.43931]
[1755421421273,0.6325,4550.4,4549.3,0.43931]
[1755421421470,0.6325,4550.4,4549.6,0.43928]
[1755421421679,0.6325,4550.4,4549.7,2.33337]
[1755421421972,1.0313,4550.7,4549.6,3.2078]
[1755421422171,4.6996,4550.6,4549.7,1.8941]
[1755421422571,4.6996,4550.6,4549.8,0.43926]
[1755421422777,3.8403,4550.6,4550.1,0.43923]
[1755421423072,0.7325,4551.2,4550.2,1.8941]
[1755421423277,0.6325,4550.8,4550.1,3.2078]
[1755421423481,2.5231,4550.4,4549.2,1.0652]
[1755421423680,3.2078,4549.8,4549.2,1.0652]
[1755421423973,0.8593,4550.4,4549.2,1.0652]
[1755421424178,0.8593,4550.4,4549.6,1.0652]
[1755421425275,0.6325,4550.2,4549.6,1.0652]
[1755421425475,0.6325,4550.2,4549.3,0.8289]
[1755421426274,0.8593,4550.1,4549.0,1.0652]
[1755421426986,0.6325,4550.0,4549.0,1.0652]
[1755421428182,1.0579,4549.9,4549.0,1.0652]
[1755421428379,1.0579,4549.9,4549.1,0.43933]
[1755421428682,0.6325,4550.0,4549.2,1.49242]
[1755421428886,0.6325,4550.0,4549.2,1.0531]
[1755421429378,3.2078,4550.3,4549.7,2.09717]
[1755421429579,0.6254,4550.8,4549.8,0.8158]
[1755421430483,1.4464,4550.6,4549.8,0.8158]
[1755421430781,0.6254,4550.6,4550.2,0.43922]
[1755421431077,3.2078,4552.4,4551.8,0.43907]
[1755421431278,0.821,4552.9,4551.9,0.43906]
[1755421431480,0.6254,4552.8,4551.9,3.2078]
[1755421431672,3.2078,4553.3,4552.1,1.8689]
[1755421431877,3.2078,4553.3,4552.1,2.4737]
[1755421432080,2.5043,4553.2,4552.1,2.4737]
[1755421432284,2.5043,4553.2,4552.2,0.43903]
[1755421432481,2.5043,4553.2,4552.1,2.4737]
[1755421432685,0.6254,4553.1,4552.2,0.43903]
[1755421432984,0.6254,4553.1,4552.3,1.0531]
[1755421433176,3.2078,4553.3,4551.9,3.2078]
[1755421433381,1.0579,4553.8,4552.7,0.8158]
[1755421433683,1.4464,4553.7,4552.6,1.0531]
[1755421433884,0.6254,4553.6,4552.6,1.0531]
[1755421434085,1.0579,4553.5,4552.6,1.0531]
[1755421434285,1.0579,4553.5,4552.4,3.2078]
[1755421434286,0.6254,4553.1,4552.4,3.2078]
[1755421435885,3.2078,4553.2,4552.5,1.8689]
[1755421436183,4.6542,4553.2,4552.5,1.0531]
[1755421436385,3.2078,4552.6,4552.0,1.0531]
[1755421436580,2.5043,4552.5,4551.9,3.2078]
[1755421436775,3.2078,4552.1,4551.3,3.2078]
[1755421436975,1.6833,4552.0,4551.3,3.2078]
[1755421437179,3.2078,4552.1,4551.3,3.2078]
[1755421437384,3.2078,4552.1,4550.5,0.6048]
[1755421437385,0.6254,4552.0,4550.9,1.49225]
[1755421437686,0.6254,4552.0,4551.4,1.0531]
[1755421438486,0.6254,4552.0,4551.0,1.8689]
[1755421438880,1.8789,4551.9,4550.8,3.2078]
[1755421439082,3.2078,4551.6,4550.8,3.2078]
[1755421439385,2.5043,4551.5,4550.8,3.2078]
[1755421439583,0.6254,4551.4,4550.8,3.2078]
[1755421440291,31.634,4552.6,4550.9,2.91286]
[1755421440292,0.6254,4552.2,4550.9,2.91286]
[1755421440492,0.6254,4552.2,4551.3,3.2078]
[1755421440782,0.821,4552.4,4550.9,2.4737]
[1755421440783,0.6254,4551.6,4550.9,1.0531]
[1755421440987,0.6254,4551.6,4550.8,3.2078]
[1755421441187,1.4464,4551.3,4550.8,3.2078]
[1755421441387,1.4464,4551.3,4549.6,0.6048]
[1755421441388,0.821,4551.0,4549.7,1.8689]
[1755421441587,3.2078,4550.5,4549.1,1.0531]
[1755421441784,1.0579,4550.2,4549.1,1.0531]
[1755421441991,3.2078,4550.6,4549.6,1.8689]
[1755421442389,0.6254,4550.5,4550.1,1.96779784]
[1755421442587,2.5043,4550.5,4550.1,0.09889784]
[1755421442787,0.6254,4550.4,4550.1,0.09889784]
[1755421442989,2.5043,4550.5,4550.1,0.09889784]
[1755421443185,0.6254,4550.4,4550.1,0.09889784]
[1755421443394,3.2078,4550.6,4550.1,0.09889784]
[1755421443593,2.5043,4550.2,4550.1,0.09889784]
[1755421444291,1.54747028,4552.7,4550.1,0.09889784]
[1755421444292,0.821,4553.6,4550.6,0.6048]
[1755421444504,0.821,4553.6,4550.4,2.196]
[1755421444505,3.2078,4554.1,4553.5,3.2078]
[1755421444690,0.821,4554.3,4553.5,3.2078]
[1755421445191,0.821,4555.0,4554.2,3.64664]
[1755421445493,4.0288,4555.6,4554.8,3.2078]
[1755421445688,3.2078,4555.6,4554.8,3.2078]
[1755421445894,0.821,4555.5,4554.8,3.2078]
[1755421446095,1.4464,4555.3,4554.8,3.2078]
[1755421446296,2.5043,4555.5,4554.8,3.2078]
[1755421446994,0.821,4554.8,4554.0,3.2078]
[1755421447194,1.8789,4554.8,4554.0,3.2078]
[1755421447787,4.0288,4554.8,4554.0,3.2078]
[1755421447994,0.821,4554.5,4554.0,3.2078]
[1755421448191,23.629,4556.0,4552.4,0.43901]
[1755421448192,1.6833,4554.2,4553.1,3.2078]
[1755421448398,1.8789,4554.1,4553.1,3.2078]
[1755421448691,1.0579,4554.0,4553.1,3.2078]
[1755421448895,3.2078,4553.2,4552.1,1.4206]
[1755421449099,5.7121,4553.1,4552.1,0.6048]
[1755421449395,1.0579,4552.8,4552.0,3.2078]
[1755421449599,2.5043,4552.6,4552.0,3.2078]
[1755421449899,2.5043,4552.5,4551.1,3.2078]
[1755421450205,1.0579,4552.4,4551.1,3.2078]
[1755421451197,3.2078,4552.1,4551.1,3.2078]
[1755421451496,1.6833,4552.0,4551.1,3.2078]
[1755421451802,1.0579,4551.9,4551.1,3.2078]
[1755421452490,3.2078,4552.1,4551.1,3.2078]
[1755421452491,1.4464,4551.6,4551.1,3.2078]
[1755421452696,0.6254,4551.4,4551.1,3.2078]
[1755421452896,1.8789,4551.8,4551.1,3.2078]
[1755421453695,1.0579,4551.7,4551.1,3.2078]
[1755421454000,1.6833,4551.4,4550.5,3.2078]
[1755421455602,1.0579,4551.3,4550.5,3.2078]
[1755421455798,1.0579,4551.1,4550.5,3.2078]
[1755421457009,0.6254,4551.0,4550.5,3.2078]
[1755421457202,3.2078,4551.6,4550.5,3.2078]
[1755421457396,0.0219,4551.2,4550.5,3.2078]
[1755421457603,2.4592,4550.8,4550.1,0.09889784]
[1755421457798,1.8613,4550.6,4550.1,0.09889784]
[1755421458000,3.2078,4550.9,4550.1,0.09889784]
[1755421458305,2.4592,4550.7,4550.1,0.09889784]
[1755421458604,31.635,4551.1,4550.3,0.8013]
[1755421458792,31.635,4551.1,4550.3,3.2078]
[1755421458793,1.6633,4551.0,4550.3,3.2078]
[1755421458998,1.6633,4551.0,4550.1,0.09889784]
[1755421458999,0.5979,4550.7,4550.1,0.09889784]
[1755421459200,4.2732,4550.5,4550.1,0.09889784]
[1755421459402,2.4592,4550.3,4550.1,0.09889784]
[1755421459699,1.6633,4550.0,4548.7,3.2078]
[1755421459899,2.4592,4549.4,4548.7,3.2078]
[1755421460096,1.0654,4549.4,4548.7,3.2078]
[1755421460607,2.4592,4548.8,4547.9,3.2078]
[1755421460792,1.8613,4548.7,4547.9,3.2078]
[1755421460996,1.6633,4548.6,4547.9,3.2078]
[1755421461196,1.0654,4548.5,4547.9,3.2078]
[1755421461494,23.605,4548.8,4547.9,3.2078]
[1755421461700,1.0654,4548.0,4547.9,3.2078]
[1755421461895,4.2732,4548.9,4547.9,4.6144]
[1755421462198,4.2732,4548.9,4545.1,0.16694949]
[1755421462199,1.0654,4549.5,4548.3,1.34041]
[1755421462397,1.0654,4549.5,4549.0,0.0997]